fUST/lending_fUST_20250623
["ID","MTS","AMOUNT","RATE_DAILY","PERIOD"]
[366996831,1750608677042,-1000.0,0.0002386,5]
[366996832,1750608677052,-2318.804825,0.00023861,7]
[366996833,1750608677061,-2318.804825,0.00023861,7]
[366996834,1750608677072,-162.777696,0.00023861,7]
[366996835,1750608677083,-162.777696,0.00023861,7]
[366996836,1750608677092,-15000.0,0.00023862,3]
[366996837,1750608677101,-151.0,0.00023862,7]
[366996838,1750608677111,-151.0,0.00023862,7]
[366996839,1750608677121,-155.434656,0.00023862,7]
[366996840,1750608677130,-151.0,0.00023862,7]
[366996841,1750608677139,-151.0,0.00023862,7]
[366996842,1750608677148,-743.58021,0.00023862,7]
[366996843,1750608677159,-743.58021,0.00023862,7]
[366996844,1750608677168,-1500.0,0.00023868,2]
[366996845,1750608677178,-1008.31430779,0.00023868,2]
[366996846,1750608677188,-1500.0,0.00023868,2]
[366996847,1750608677198,-1004.11801205,0.00023868,2]
[366996848,1750608677208,-509.50906241,0.00023868,2]
[366996849,1750608677218,-1500.0,0.00023868,2]
[366996850,1750608677229,-1565.94837091,0.00023868,2]
[366996851,1750608677239,-477.26734212,0.00023868,2]
[366996852,1750608677248,-1500.0,0.00023868,2]
[366996853,1750608677258,-1500.0,0.00023868,2]
[366996854,1750608677267,-1800.0,0.00023868,2]
[366996855,1750608677277,-1487.07405773,0.00023868,2]
[366996856,1750608677287,-1096.30454229,0.00023868,2]
[366996857,1750608677296,-1500.0,0.00023868,2]
[366996858,1750608677306,-1279.12600258,0.00023868,2]
[366996859,1750608677316,-1500.0,0.00023868,2]
[366996860,1750608677326,-1500.0,0.00023868,2]
[366996861,1750608677336,-508.63767132,0.00023868,2]
[366996862,1750608677346,-1117.06856904,0.00023868,2]
[366996863,1750608677356,-1500.0,0.00023868,2]
[366996864,1750608677366,-1386.74924885,0.00023868,2]
[366996865,1750608677375,-1500.0,0.00023868,2]
[366996866,1750608677384,-1500.0,0.00023868,2]
[366996867,1750608677394,-1500.0,0.00023868,2]
[366996868,1750608677404,-150.0,0.00023873,2]
[366996869,1750608677413,-600.0,0.00023875,2]
[366996870,1750608677423,-700.0,0.00023876,2]
[366996871,1750608677434,-1000.0,0.0002388,5]
[366996872,1750608677444,-500.0,0.00023892,2]
[366996873,1750608677453,-700.0,0.00023898,2]
[366996874,1750608677463,-18000.0,0.00023899,3]
[366996875,1750608677473,-10000.0,0.000239,5]
[366996876,1750608677484,-306.0,0.000239,2]
[366996877,1750608677494,-76742.07818255,0.000239,2]
[366996878,1750608677503,-151.0,0.000239,7]
[366996879,1750608677513,-328.485967,0.000239,7]
[366996880,1750608677523,-328.485967,0.000239,7]
[366996881,1750608677533,-1000.0,0.000239,5]
[366996882,1750608677542,-176.448579,0.000239,4]
[366996883,1750608677552,-158.698644,0.000239,4]
[366996884,1750608677562,-4681.7206586,0.000239,2]
[366996885,1750608677572,-600.0,0.00023904,2]
[366996886,1750608677582,-1000.0,0.0002392,5]
[366996887,1750608677591,-5888.0,0.00023921,2]
[366996888,1750608677602,-2300.0,0.00023923,2]
[366996889,1750608677611,-7000.0,0.00023924,3]
[366996890,1750608677622,-2351.0,0.00023938,2]
[366996891,1750608677631,-200.0,0.00023939,2]
[366996892,1750608677641,-38031.48501579,0.0002394,2]
[366996893,1750608677651,-19073.58114451,0.0002394,2]
[366996894,1750608677660,-1566773.68181965,0.0002394,7]
[366996895,1750608677670,-151.0,0.0002394,7]
[366996896,1750608677680,-155.8462,0.0002394,7]
[366996897,1750608677689,-151.0,0.0002394,7]
[366996898,1750608677699,-151.0,0.0002394,7]
[366996899,1750608677709,-205.43907,0.0002394,7]
[366996900,1750608677721,-205.43907,0.0002394,7]
[366996901,1750608677732,-151.0,0.0002394,7]
[366996902,1750608677742,-190.890459,0.0002394,7]
[366996903,1750608677751,-151.0,0.0002394,7]
[366996904,1750608677760,-151.0,0.0002394,7]
[366996905,1750608677770,-151.0,0.0002394,7]
[366996906,1750608677780,-151.0,0.0002394,7]
[366996907,1750608677789,-151.0,0.0002394,7]
[366996908,1750608677801,-151.0,0.0002394,7]
[366996909,1750608677811,-151.0,0.0002394,7]
[366996910,1750608677821,-151.0,0.0002394,7]
[366996911,1750608677830,-151.0,0.0002394,7]
[366996912,1750608677839,-390.944696,0.0002394,7]
[366996913,1750608677849,-390.944696,0.0002394,7]
[366996914,1750608677858,-618.4547,0.0002394,7]
[366996915,1750608677869,-618.4547,0.0002394,7]
[366996916,1750608677879,-291.743431,0.0002394,7]
[366996917,1750608677889,-204.213374,0.0002394,7]
[366996918,1750608677899,-204.213374,0.0002394,7]
[366996919,1750608677908,-151.0,0.0002394,7]
[366996920,1750608677918,-151.0,0.0002394,7]
[366996921,1750608677927,-151.0,0.0002394,7]
[366996922,1750608677936,-151.0,0.0002394,7]
[366996923,1750608677946,-241.416361,0.0002394,7]
[366996924,1750608677955,-241.416361,0.0002394,7]
[366996925,1750608677964,-251.622977,0.0002394,7]
[366996926,1750608677974,-251.622977,0.0002394,7]
[366996927,1750608677983,-151.0,0.0002394,7]
[366996928,1750608677992,-151.0,0.0002394,7]
[366996929,1750608678001,-151.0,0.0002394,7]
[366996930,1750608678010,-151.0,0.0002394,7]
[366996931,1750608678021,-2318.804825,0.0002394,7]
[366996932,1750608678030,-2318.804825,0.0002394,7]
[366996933,1750608678039,-328.485967,0.0002394,7]
[366996934,1750608678049,-328.485967,0.0002394,7]
[366996935,1750608678059,-151.0,0.0002394,7]
[366996936,1750608678068,-233.111672,0.0002394,7]
[366996937,1750608678078,-755.004586,0.0002394,7]
[366996938,1750608678087,-233.111672,0.0002394,7]
[366996939,1750608678097,-755.004586,0.0002394,7]
[366996940,1750608678106,-151.0,0.0002394,7]
[366996941,1750608678116,-743.58021,0.0002394,7]
[366996942,1750608678125,-743.58021,0.0002394,7]
[366996943,1750608678134,-162.777696,0.0002394,7]
[366996944,1750608678144,-162.777696,0.0002394,7]
[366996945,1750608678153,-151.0,0.0002394,7]
[366996946,1750608678162,-1000.0,0.0002394,5]
[366996947,1750608678171,-742.795626,0.0002394,2]
[366996948,1750608678180,-742.795626,0.0002394,2]
[366996949,1750608678190,-151.0,0.0002394,7]
[366996950,1750608678199,-151.0,0.0002394,7]
[366996951,1750608678208,-151.0,0.0002394,7]
[366996952,1750608678218,-151.0,0.0002394,7]
[366996953,1750608678227,-151.0,0.0002394,7]
[366996954,1750608678237,-151.0,0.0002394,7]
[366996955,1750608678247,-152.147062,0.0002394,7]
[366996956,1750608678256,-212.949246,0.0002394,7]
[366996957,1750608678266,-212.949246,0.0002394,7]
[366996958,1750608678275,-294.644519,0.0002394,7]
[366996959,1750608678285,-294.644519,0.0002394,7]
[366996960,1750608678294,-562.903377,0.0002394,7]
[366996961,1750608678305,-562.903377,0.0002394,7]
[366996962,1750608678314,-620.798357,0.0002394,7]
[366996963,1750608678325,-620.798357,0.0002394,7]
[366996964,1750608678334,-804.88004104,0.00023944,2]
[366996965,1750608678344,-513.90061956,0.00023944,2]
[366996966,1750608678354,-8000.0,0.00023948,3]
[366996967,1750608678363,-1000.0,0.0002396,5]
[366996968,1750608678373,-1000.0,0.0002398,5]
[366996969,1750608678382,-2300.0,0.00023988,2]
[366996970,1750608678391,-600.0,0.00023992,2]
[366996971,1750608678401,-700.0,0.00023996,2]
[366996972,1750608678410,-128300.46938022,0.00023999,2]
[366996973,1750608678593,-2567.34098485,0.00023999,2]
[366996974,1750608678627,-218.71833244,0.00022191,3]
[366996975,1750608678637,-4802.02,0.00023561,3]
[366996976,1750608678647,-670.3,0.00023835,3]
[366996977,1750608678657,-5365.05166757,0.00023999,2]
[366996978,1750608678699,-563.03806933,0.00023835,3]
[366996979,1750608678909,-460.0,0.00021917,3]
[366996980,1750608678919,-158.41132676,0.00022191,3]
[366996981,1750608679101,-301.58867324,0.00022191,3]
[366996982,1750608679110,-4238.98193067,0.00023835,3]
[366996983,1750608679120,-304707.01365429,0.00023999,2]
[366996984,1750608732265,1596.7387527,0.00018329,2]
[366996985,1750608814590,200.0,0.00024,30]
[366996986,1750608903218,1661.15739098,0.00024,30]
[366996987,1750608903825,-154.138,0.0001911,2]
[366996988,1750608910479,-1405.50130917,0.0001911,2]
[366996989,1750608910509,-154.15271675,0.000193,2]
[366996990,1750608910537,-201.50160357,0.00019797,2]
[366996991,1750608910568,-160.0,0.00019798,2]
[366996992,1750608910600,-4441.0,0.00019798,2]
[366996993,1750608910631,-300.0,0.00019998,2]
[366996994,1750608913401,5000.0,0.00019102,2]
[366996995,1750608938514,1212.316494,0.00019772,2]
[366996996,1750608942730,666.0,0.00019772,2]
[366996997,1750608998917,-243.985567,0.00019416,2]
[366996998,1750609035921,1038.3010585,0.00019571,2]
[366996999,1750609045868,1000.0,0.00019487,2]
[366997000,1750609046123,1000.0,0.0001969,2]
[366997001,1750609046404,1000.0,0.00019999,2]
[366997003,1750609075690,24900.0,0.00019772,2]
[366997004,1750609105747,201.50160357,0.00019697,2]
[366997005,1750609117564,2372.22620393,0.000201,2]
[366997006,1750609117589,2627.77379607,0.000201,2]
[366997007,1750609203142,239.37237669,0.0001911,2]
[366997008,1750609203257,1661.15739098,0.00024,30]
[366997009,1750609217917,-3000.0,0.0002401,30]
[366997010,1750609217943,-3000.0,0.0002402,30]
[366997011,1750609217966,-3000.0,0.0002403,30]
[366997012,1750609217990,-3000.0,0.0002404,30]
[366997013,1750609218013,-3000.0,0.0002405,30]
[366997014,1750609218042,-3000.0,0.0002406,30]
[366997015,1750609218066,-3000.0,0.0002407,30]
[366997016,1750609218090,-3000.0,0.0002408,30]
[366997017,1750609218113,-3000.0,0.0002409,30]
[366997018,1750609218137,-3000.0,0.000241,30]
[366997019,1750609218162,-846.39664074,0.000241,30]
[366997020,1750609218185,-524.02598587,0.000241,30]
[366997021,1750609218210,-12551.52821599,0.000241,30]
[366997022,1750609218234,-213.59462818,0.000241,30]
[366997023,1750609218316,-3000.0,0.0002411,30]
[366997024,1750609218340,-3000.0,0.0002412,30]
[366997025,1750609218364,-3000.0,0.0002413,30]
[366997026,1750609218387,-3310.338187,0.0002414,30]
[366997027,1750609218428,-1001.37184474,0.000245,30]
[366997028,1750609218456,-682.04554696,0.000246,30]
[366997029,1750609218505,-200.0,0.00024884,30]
[366997030,1750609218528,-200.0,0.00024884,30]
[366997031,1750609218551,-200.0,0.00024884,30]
[366997032,1750609218586,-623.08481618,0.00025,30]
[366997033,1750609218610,-846.39664074,0.00025,30]
[366997034,1750609218632,-524.02598587,0.00025,30]
[366997035,1750609218657,-230.14598372,0.00025,30]
[366997036,1750609218680,-230.14598372,0.00025,30]
[366997037,1750609218702,-160.0,0.00025,30]
[366997038,1750609218724,-160.0,0.00025,30]
[366997039,1750609218748,-12551.52821599,0.00025,30]
[366997040,1750609218771,-836.56272071,0.00025,30]
[366997041,1750609218793,-836.56272071,0.00025,30]
[366997042,1750609218815,-213.59462818,0.00025,30]
[366997043,1750609218837,-425.01221603,0.00025,30]
[366997044,1750609218862,-425.01221603,0.00025,30]
[366997045,1750609218887,-160.0,0.00025,30]
[366997046,1750609218911,-160.0,0.00025,30]
[366997047,1750609218934,-160.0,0.00025,30]
[366997048,1750609227510,500.0,0.00025,120]
[366997049,1750609249781,209.5355793,0.00025,120]
[366997050,1750609302411,200.0,0.00024931,120]
[366997051,1750609339353,500.0,0.0002,30]
[366997052,1750609340416,500.0,0.0002,10]
[366997053,1750609340868,500.0,0.0002,15]
[366997054,1750609341454,413.07,0.0002,15]
[366997055,1750609342588,500.0,0.000225,30]
[366997056,1750609348759,500.0,0.00025,30]
[366997057,1750609349387,500.0,0.00025,30]
[366997058,1750609355191,500.0,0.00025,30]
[366997059,1750609358487,500.0,0.00025,30]
[366997060,1750609358656,500.0,0.00025,30]
[366997061,1750609362013,500.0,0.00025,30]
[366997062,1750609362715,500.0,0.00025,30]
[366997063,1750609363169,500.0,0.00025,30]
[366997064,1750609369205,500.0,0.00025,30]
[366997065,1750609369688,500.0,0.00025,30]
[366997066,1750609515572,150.89652859,0.000201,2]
[366997067,1750609545461,326.545549,0.00013699,2]
[366997069,1750609561153,151.0,0.000201,2]
[366997070,1750609561240,151.0,0.000201,2]
[366997076,1750609631091,-239.79618859,0.00020101,2]
[366997078,1750609640118,-377.20650624,0.00020101,2]
[366997079,1750609640140,-326.545549,0.00020187,2]
[366997080,1750609640162,-300.0,0.000204,2]
[366997081,1750609640182,-160.0,0.000204,2]
[366997082,1750609640202,-300.0,0.00020401,2]
[366997083,1750609640222,-300.0,0.00020401,2]
[366997084,1750609640242,-184.18515647,0.00020401,2]
[366997086,1750609675760,6928.77774146,0.00018,2]
[366997087,1750609691482,4840.0926,0.000201,2]
[366997089,1750609699259,413.10299907,0.00010618,2]
[366997090,1750609701205,11326.88373762,0.000125,2]
[366997092,1750609710315,2075.39674479,0.000176,2]
[366997093,1750609712069,200.62823428,0.00019,2]
[366997096,1750609712944,276.47808903,0.00014114,2]
[366997097,1750609714994,281.30337699,0.0001,2]
[366997098,1750609718276,597.67822641,0.0002,2]
[366997099,1750609718298,505.21940494,0.0002,2]
[366997100,1750609720455,7082.80543201,0.00017,2]
[366997101,1750609723695,2149.56853655,0.00018,2]
[366997102,1750609724362,181.97367967,0.0002,2]
[366997104,1750609725259,577.86247831,0.000149,2]
[366997105,1750609727276,4843.239252,0.0002,120]
[366997106,1750609729054,1006.40191053,0.00025,120]
[366997109,1750609730239,21502.57046852,0.0002,2]
[366997110,1750609730262,31828.95489041,0.0002,2]
[366997115,1750609759280,171.04510959,0.00019402,2]
[366997116,1750609759303,9828.95489041,0.00019402,2]
[366997117,1750609762647,2309.0,0.00019404,2]
[366997118,1750609802577,-210.31204284,0.00020302,2]
[366997119,1750609807961,-218.48786168,0.00020302,2]
[366997120,1750609807984,-40.51213832,0.00020393,2]
[366997121,1750609808405,185.16667043,0.00019689,2]
[366997131,1750609818236,-166.88786168,0.00020393,2]
[366997132,1750609818261,-33.11213832,0.00020393,2]
[366997153,1750609831980,-1654.88786168,0.00020393,2]
[366997154,1750609831989,-300.0,0.000204,2]
[366997155,1750609831999,-300.0,0.000204,2]
[366997156,1750609832009,-1200.0,0.000204,2]
[366997157,1750609832019,-295.0,0.000204,2]
[366997158,1750609832029,-500.0,0.00020401,2]
[366997159,1750609832044,-500.0,0.00020401,2]
[366997160,1750609832053,-587.22045567,0.00020401,2]
[366997162,1750609832062,-500.0,0.00020401,2]
[366997164,1750609832072,-280.09952688,0.00020401,2]
[366997166,1750609832083,-500.0,0.00020401,2]
[366997168,1750609832092,-500.0,0.00020401,2]
[366997169,1750609832103,-500.0,0.00020401,2]
[366997170,1750609832112,-500.0,0.00020401,2]
[366997171,1750609832123,-500.0,0.00020401,2]
[366997172,1750609832133,-500.0,0.00020401,2]
[366997173,1750609832142,-500.0,0.00020401,2]
[366997174,1750609832152,-266.60243198,0.00020401,2]
[366997175,1750609832161,-500.0,0.00020401,2]
[366997176,1750609832171,-500.0,0.00020401,2]
[366997177,1750609832180,-500.0,0.00020401,2]
[366997178,1750609832190,-500.0,0.00020401,2]
[366997179,1750609832199,-500.0,0.00020401,2]
[366997180,1750609832208,-500.0,0.00020401,2]
[366997181,1750609832219,-500.0,0.00020401,2]
[366997182,1750609832228,-346.38451159,0.00020401,2]
[366997183,1750609832238,-500.0,0.00020401,2]
[366997184,1750609832247,-500.0,0.00020401,2]
[366997185,1750609832257,-500.0,0.00020401,2]
[366997186,1750609832266,-500.0,0.00020401,2]
[366997187,1750609832276,-500.0,0.00020401,2]
[366997188,1750609832285,-500.0,0.00020401,2]
[366997189,1750609832294,-520.23846064,0.00020401,2]
[366997190,1750609832304,-288.47985524,0.00020401,2]
[366997191,1750609832313,-409.53991634,0.00020401,2]
[366997192,1750609832324,-500.0,0.00020401,2]
[366997193,1750609832335,-500.0,0.00020401,2]
[366997194,1750609832345,-500.0,0.00020401,2]
[366997195,1750609832355,-7.85281157,0.00020401,2]
[366997196,1750609832373,-492.14718843,0.00020401,2]
[366997197,1750609832383,-148.89994784,0.00020401,2]
[366997198,1750609832396,-351.10005216,0.00020401,2]
[366997199,1750609832407,-134.38138194,0.00020401,2]
[366997200,1750609832419,-365.61861806,0.00020401,2]
[366997201,1750609832429,-500.0,0.00020401,2]
[366997202,1750609832439,-500.0,0.00020401,2]
[366997203,1750609832450,-500.0,0.00020405,2]
[366997204,1750609832459,-9.04533837,0.00020418,3]
[366997205,1750609832815,-285.60883159,0.00020418,3]
[366997244,1750609838052,-546.34583004,0.00020418,3]
[366997246,1750609838062,-843.0,0.00020418,3]
[366997248,1750609838072,-841.0,0.00020418,3]
[366997250,1750609838082,-841.0,0.00020418,3]
[366997252,1750609838091,-841.0,0.00020418,3]
[366997254,1750609838101,-1688.0,0.00020448,2]
[366997256,1750609838111,-9254.70721945,0.000205,2]
[366997258,1750609838121,-5000.0,0.00020589,2]
[366997260,1750609838131,-220.74147938,0.00020653,2]
[366997262,1750609838141,-500.0,0.00020667,2]
[366997264,1750609838151,-500.0,0.00020667,2]
[366997267,1750609838161,-500.0,0.00020667,2]
[366997269,1750609838170,-500.0,0.00020679,2]
[366997270,1750609838179,-500.0,0.000207,2]
[366997272,1750609838189,-500.0,0.000207,2]
[366997274,1750609838198,-500.0,0.000207,2]
[366997277,1750609838208,-500.0,0.000207,2]
[366997279,1750609838217,-793.27,0.00020703,3]
[366997280,1750609838226,-1642.60777279,0.00020822,2]
[366997282,1750609838236,-2060.52,0.00020941,10]
[366997284,1750609838246,-1717.1,0.00020941,10]
[366997286,1750609838255,-500.0,0.00020953,2]
[366997288,1750609838264,-500.0,0.00020976,2]
[366997291,1750609838274,-500.0,0.00020976,2]
[366997292,1750609838283,-500.0,0.00020976,2]
[366997295,1750609838293,-500.0,0.00020976,2]
[366997297,1750609838302,-500.0,0.00020976,2]
[366997298,1750609838311,-500.0,0.00020976,2]
[366997300,1750609838321,-180.76447032,0.00020976,2]
[366997302,1750609838331,-500.0,0.00020976,2]
[366997304,1750609838340,-400.94510139,0.00020976,2]
[366997306,1750609838349,-500.0,0.00020976,2]
[366997308,1750609838359,-500.0,0.00020976,2]
[366997310,1750609838369,-500.0,0.00020976,2]
[366997312,1750609838378,-1000.0,0.00020977,2]
[366997314,1750609838388,-1000.0,0.00020977,2]
[366997316,1750609838398,-500.0,0.00020977,2]
[366997319,1750609838408,-1000.0,0.00020977,2]
[366997321,1750609838417,-1000.0,0.00020977,2]
[366997323,1750609838427,-1000.0,0.00020977,2]
[366997325,1750609838437,-165.15320244,0.00020977,2]
[366997327,1750609838447,-1000.0,0.00020977,2]
[366997329,1750609838456,-1000.0,0.00020977,2]
[366997331,1750609838465,-1000.0,0.00020977,2]
[366997333,1750609838475,-1000.0,0.00020977,2]
[366997335,1750609838484,-1000.0,0.00020977,2]
[366997336,1750609838494,-1000.0,0.00020977,2]
[366997338,1750609838504,-1000.0,0.00020977,2]
[366997341,1750609838514,-1000.0,0.00020977,2]
[366997343,1750609838523,-1000.0,0.00020977,2]
[366997344,1750609838532,-1000.0,0.00020977,2]
[366997347,1750609838542,-1000.0,0.00020977,2]
[366997349,1750609838552,-1000.0,0.00020977,2]
[366997350,1750609838561,-1000.0,0.00020977,2]
[366997352,1750609838570,-1000.0,0.00020977,2]
[366997354,1750609838580,-500.0,0.00020977,2]
[366997357,1750609838590,-1000.0,0.00020977,2]
[366997359,1750609838599,-1000.0,0.00020977,2]
[366997361,1750609838609,-1000.0,0.00020977,2]
[366997363,1750609838618,-5000.0,0.00020977,2]
[366997365,1750609838629,-1000.0,0.00020977,2]
[366997367,1750609838638,-156.89515289,0.00020977,2]
[366997369,1750609838647,-25000.0,0.00020977,2]
[366997371,1750609838656,-8155.53973884,0.00020977,2]
[366997373,1750609838666,-1430.92,0.0002098,10]
[366997375,1750609838675,-100000.0,0.0002099,2]
[366997377,1750609838684,-13210.74899081,0.000211,2]
[366997379,1750609838694,-267.76,0.00021195,2]
[366997381,1750609838703,-5888.0,0.00021195,2]
[366997383,1750609838712,-1896.56946783,0.000212,4]
[366997384,1750609838725,-1896.56946783,0.000212,4]
[366997386,1750609838734,-314.7868718,0.00021203,2]
[366997388,1750609838744,-1000.0,0.00021215,2]
[366997391,1750609838753,-1000.0,0.00021215,2]
[366997392,1750609838763,-1000.0,0.00021215,2]
[366997394,1750609838772,-1000.0,0.00021248,2]
[366997397,1750609838782,-1000.0,0.00021248,2]
[366997398,1750609838792,-1142.03922287,0.00021248,2]
[366997400,1750609838801,-1000.0,0.00021248,2]
[366997402,1750609838811,-1896.56946783,0.00021314,5]
[366997404,1750609838820,-665.496,0.00021449,2]
[366997406,1750609838830,-67030.31492,0.0002152,2]
[366997408,1750609838840,-1896.56946783,0.00021521,5]
[366997410,1750609838849,-5000.0,0.00021525,2]
[366997413,1750609838860,-25000.0,0.00021525,2]
[366997415,1750609838869,-1498.0,0.00021537,2]
[366997416,1750609838878,-292.0,0.00021603,2]
[366997418,1750609838888,-5888.0,0.00021618,2]
[366997420,1750609838897,-160.0,0.00021661,2]
[366997423,1750609838908,-160.0,0.00021661,2]
[366997425,1750609838918,-836.56272071,0.00021661,2]
[366997427,1750609838927,-230.14598372,0.00021661,2]
[366997429,1750609838936,-846.39664074,0.00021661,2]
[366997431,1750609838946,-213.59462818,0.00021661,2]
[366997433,1750609838956,-160.0,0.00021661,2]
[366997434,1750609838965,-160.0,0.00021661,2]
[366997436,1750609838977,-160.0,0.00021661,2]
[366997438,1750609838986,-425.01221603,0.00021661,2]
[366997440,1750609838995,-160.0,0.00021661,2]
[366997442,1750609839004,-160.0,0.00021661,2]
[366997444,1750609839014,-12551.52821599,0.00021661,2]
[366997446,1750609839023,-160.0,0.00021661,2]
[366997448,1750609839032,-160.0,0.00021663,2]
[366997450,1750609839042,-528.82,0.00021688,3]
[366997452,1750609839053,-264.41,0.00021688,3]
[366997454,1750609839063,-5888.0,0.00021698,2]
[366997456,1750609839072,-1896.56946783,0.00021728,5]
[366997458,1750609839083,-215.0738,0.00021762,2]
[366997460,1750609839092,-1500.0,0.00021763,2]
[366997462,1750609839102,-1500.0,0.00021763,2]
[366997464,1750609839111,-1500.0,0.00021796,2]
[366997466,1750609839122,-1500.0,0.00021796,2]
[366997468,1750609839131,-846.39664074,0.00021817,3]
[366997470,1750609839141,-12551.52821599,0.00021817,3]
[366997472,1750609839150,-160.0,0.00021817,3]
[366997474,1750609839160,-213.59462818,0.00021817,3]
[366997476,1750609839169,-1211.3045769,0.00021817,2]
[366997478,1750609839179,-83908.04506217,0.000219,2]
[366997480,1750609839188,-185.21013589,0.000219,2]
[366997482,1750609839198,-39102.00221915,0.00021916,2]
[366997484,1750609839207,-460.0,0.00021917,3]
[366997486,1750609839216,-460.0,0.00021917,3]
[366997487,1750609839227,-460.0,0.00021917,3]
[366997490,1750609839236,-460.0,0.00021917,3]
[366997492,1750609839246,-692.52,0.00021917,3]
[366997494,1750609839255,-250.0,0.00021917,3]
[366997496,1750609839266,-460.0,0.00021917,3]
[366997498,1750609839275,-1000.0,0.00021917,3]
[366997500,1750609839284,-460.0,0.00021917,3]
[366997502,1750609839293,-460.0,0.00021917,3]
[366997504,1750609839303,-460.0,0.00021917,3]
[366997506,1750609839312,-460.0,0.00021917,3]
[366997508,1750609839321,-584.17,0.00021917,3]
[366997510,1750609839330,-460.0,0.00021917,3]
[366997512,1750609839340,-460.0,0.00021917,3]
[366997514,1750609839349,-500.0,0.00021917,3]
[366997537,1750609839564,-500.0,0.00021917,3]
[366997539,1750609839575,-500.0,0.00021917,3]
[366997541,1750609839586,-500.0,0.00021917,3]
[366997543,1750609839596,-500.0,0.00021917,3]
[366997545,1750609839605,-500.0,0.00021917,3]
[366997547,1750609839615,-500.0,0.00021917,3]
[366997549,1750609839625,-500.0,0.00021917,3]
[366997551,1750609839634,-500.0,0.00021917,3]
[366997553,1750609839644,-460.0,0.00021917,3]
[366997555,1750609839653,-460.0,0.00021917,3]
[366997558,1750609839664,-460.0,0.00021917,3]
[366997560,1750609839675,-298.94071719,0.00021917,3]
[366997561,1750609839685,-1407.52,0.00021917,3]
[366997564,1750609839695,-460.0,0.00021917,3]
[366997565,1750609839704,-460.0,0.00021917,3]
[366997567,1750609839714,-460.0,0.00021917,3]
[366997569,1750609839727,-460.0,0.00021917,3]
[366997571,1750609839736,-460.0,0.00021917,3]
[366997573,1750609839746,-402.63648381,0.00021917,3]
[366997575,1750609839757,-460.0,0.00021917,3]
[366997577,1750609839766,-948.51,0.00021917,3]
[366997579,1750609839776,-460.0,0.00021917,3]
[366997581,1750609839786,-531.14580334,0.00021917,3]
[366997583,1750609839797,-460.0,0.00021917,3]
[366997585,1750609839807,-460.0,0.00021917,3]
[366997587,1750609839817,-465.61923004,0.00021917,3]
[366997589,1750609839827,-463.88466583,0.00021917,3]
[366997592,1750609839841,-333.63538196,0.00021917,3]
[366997594,1750609839851,-460.0,0.00021917,3]
[366997596,1750609839861,-460.0,0.00021917,3]
[366997598,1750609839871,-460.0,0.00021917,3]
[366997600,1750609839881,-460.0,0.00021917,3]
[366997602,1750609839890,-409.14818073,0.00021917,3]
[366997604,1750609839900,-460.0,0.00021917,3]
[366997606,1750609839911,-460.0,0.00021917,3]
[366997608,1750609839920,-460.0,0.00021917,3]
[366997610,1750609839930,-460.0,0.00021917,3]
[366997612,1750609839939,-460.0,0.00021917,3]
[366997613,1750609839948,-460.0,0.00021917,3]
[366997615,1750609839958,-460.0,0.00021917,3]
[366997617,1750609839967,-460.0,0.00021917,3]
[366997620,1750609839978,-541.74935719,0.00021917,3]